Cogmind - Beta 9.6 @@@ ROGUE MODE // 2020.08.21 @ 02:48:48 Player: Sudoku Result: Destroyed by D-53 Grenadier with Mini Grenade Launcher Performance ------------- Evolutions (0) 0 Regions Visited (2) 400 Robots Destroyed (12) 60 Value Destroyed (96) 96 Prototype IDs (0) 0 Alien Tech Used (0) 0 Bonus (0) 0 TOTAL SCORE: 556 Bonus ------- None Cogmind --------- Core Integrity 0/250 Matter 260/300 Energy 125/125 System Corruption 0% Temperature Cool (0) Movement Rolling (100) Location -10/Mines Parts ------- > --- POWER (1) -------- Light Ion Engine > --- PROPULSION (2) --- Compact Wheel Compact Wheel > --- UTILITY (2) ------ Medium Storage Unit Medium Storage Unit > --- WEAPON (2) ------- (None) > --- INVENTORY (12) --- Wheel Medium Storage Unit Small Matter Pod (50) Medium Matter Pod (100) Medium Matter Pod (79) Large Matter Pod (150) High-capacity Matter Pod (200) Peak State ------------ > --- POWER ------------ Light Ion Engine > --- PROPULSION ------- Aluminum Leg Aluminum Leg > --- UTILITY ---------- Small Storage Unit Medium Storage Unit > --- WEAPON ----------- Light Assault Rifle Light Assault Rifle > --- INVENTORY -------- Light Ion Engine Wheel Compact Wheel Compact Wheel Small Storage Unit Medium Storage Unit Medium Storage Unit Medium Matter Pod EM Pulse Gun Light Assault Rifle [Rating: 8] Favorites ----------- Power Light Ion Engine Engine Light Ion Engine Propulsion Aluminum Leg Leg Aluminum Leg Wheel Compact Wheel Utility Small Storage Unit Storage Small Storage Unit Weapon Light Assault Rifle Energy Gun EM Pulse Gun Ballistic Gun Light Assault Rifle Build | -11 -10 -10 ------- Run | Scr Mat Min Slots Evolved . | . . . Power . | . . . Propulsion . | . . . Utility . | . . . Weapon . | . . . Parts Attached 17 | 7 . 10 Power 3 | 1 . 2 Engine 3 | 1 . 2 Core . | . . . Reactor . | . . . Propulsion 4 | 2 . 2 Treads . | . . . Leg 2 | 2 . . Wheel 2 | . . 2 Hover . | . . . Flight . | . . . Utility 4 | 2 . 2 Device . | . . . Storage 4 | 2 . 2 Processor . | . . . Hackware . | . . . Protection . | . . . Artifact . | . . . Weapon 6 | 2 . 4 Energy Gun 2 | . . 2 Energy Cannon . | . . . Ballistic Gun 4 | 2 . 2 Ballistic Cannon . | . . . Launcher . | . . . Special Weapon . | . . . Impact Weapon . | . . . Slashing Weapon . | . . . Piercing Weapon . | . . . Special Melee Weapon . | . . . Unidentified Prototypes . | . . . Parts Lost 9 | . . 9 Power 2 | . . 2 Propulsion 2 | . . 2 Utility . | . . . Weapon 5 | . . 5 Highest Loss Streak 7 | . . 7 Average Slot Usage (%) 97 | . 100 97 Engine 13 | . 14 13 Leg 26 | . 28 26 Storage 28 | . 28 28 Energy Gun 1 | . . 1 Ballistic Gun 26 | . 28 26 Naked Turns . | . . . Heaviest Build 22 | 13 13 22 Greatest Support 32 | 20 20 32 Greatest Overweight (x) 1 | . . 1 Average Overweight (x) . | . . . Largest Inventory Capacity 12 | 8 8 12 Average Capacity 8 | 6 8 9 Most Carried 12 | 8 8 12 Average Carried 7 | 3 7 8 Final Capacity 12 | 8 8 12 Final Carried 8 | 8 8 7 Class Distribution -------------------- 100% | Mutant Dominant Class ---------------- Mutant | -10/Materials Mutant | -10/Mines Resources | -11 -10 -10 ----------- Run | Scr Mat Min Matter Collected 518 | 272 . 246 Remotely . | . . . Salvage Created 242 | 78 . 164 Parts 27 | 3 . 24 Haulers Intercepted . | . . . Recyclers Shooed . | . . . Parts Field Recycled . | . . . Retrieved Matter . | . . . Parts Self-Destructed . | . . . Prevented . | . . . Kills | -11 -10 -10 ------- Run | Scr Mat Min Combat Hostiles Destroyed 11 | . . 11 Guns 11 | . . 11 Classes Destroyed 3 | 1 . 2 Recycler 1 | 1 . . Swarmer 9 | . . 9 Assembled 2 | . . 2 Best Kill Streak 9 | 1 . 9 Combat Bots Only 9 | . . 9 Max Kills in Single Turn 1 | 1 . 1 Gunslinging . | . . . Exploded . | . . . Melee . | . . . Uniques/NPCs Destroyed . | . . . Combat | -11 -10 -10 -------- Run | Scr Mat Min Damage Taken 1072 | . . 1072 Core 279 | . . 279 Absorbed by Shields . | . . . Core Remaining (%) 100 | 100 . . Volleys Fired 37 | 1 . 36 Largest 2 | 2 . 2 Hottest 60 | 40 . 60 Shots Fired 74 | 2 . 72 Gun 74 | 2 . 72 Cannon . | . . . Launcher . | . . . Special . | . . . Kinetic 66 | 2 . 64 Thermal . | . . . Explosive . | . . . Electromagnetic 8 | . . 8 Robot Hit Streak 7 | 2 . 7 Robot Miss Streak 6 | . . 6 Penetration Max . | . . . Secondary Targets 3 | . . 3 Max Gunslinging Chain 1 | . . 1 Shots Hit Robots 40 | 2 . 38 Core Hits 21 | 2 . 19 Critical Hits 1 | . . 1 Critical Kills 1 | . . 1 Critical Parts Destroyed . | . . . Melee Attacks . | . . . Impact . | . . . Slashing . | . . . Piercing . | . . . Sneak Attacks . | . . . Combat Hostiles . | . . . Follow-up Attacks . | . . . Damage Inflicted 341 | 18 . 323 Guns 341 | 18 . 323 Cannons . | . . . Explosions . | . . . Melee . | . . . Ramming . | . . . Kinetic 320 | 18 . 302 Thermal . | . . . Explosive . | . . . Electromagnetic 21 | . . 21 Impact . | . . . Slashing . | . . . Piercing . | . . . Highest Corruption . | . . . Average Corruption . | . . . Corruption Purged . | . . . Overload Shots . | . . . Overflow Damage . | . . . Projectiles . | . . . Explosions . | . . . Melee . | . . . Knockbacks . | . . . Impact . | . . . Kinetic . | . . . Secondary . | . . . Self-Inflicted Damage . | . . . Shots . | . . . Rammed . | . . . Targets Rammed . | . . . Kicked . | . . . Crushed . | . . . Highest Temperature 40 | . . 40 Average Temperature 19 | . . 19 Received Heat Transfer . | . . . Siege Activations . | . . . Robots Corrupted . | . . . Combat Hostiles . | . . . Parts Fried . | . . . Impact Corruptions . | . . . Robots Melted . | . . . Combat Hostiles . | . . . Parts Melted . | . . . Heat Transferred . | . . . Parts Sabotaged . | . . . Parts Stolen . | . . . Parts Stripped . | . . . Power Chain Reactions . | . . . Missiles Intercepted . | . . . Alert | -11 -10 -10 ------- Run | Scr Mat Min Peak Influence 205 | 5 3 205 Average Influence 123 | 2 3 173 Maximum Alert Level 1 | . . 1 Low Security (%) 48 | 100 100 26 Level 1 51 | . . 73 Level 2 . | . . . Level 3 . | . . . Level 4 . | . . . Level 5 . | . . . High Security . | . . . Max Security . | . . . Squads Dispatched . | . . . Investigation . | . . . Extermination . | . . . Reinforcement . | . . . Assault . | . . . Garrison . | . . . Intercept . | . . . Construction Impeded . | . . . Haulers Reinforced . | . . . Stealth | -11 -10 -10 --------- Run | Scr Mat Min Distress Signals . | . . . Communications Jammed . | . . . Distress Signals . | . . . Times Spotted 36 | . . 36 Peak Tracking Total 20 | . . 20 Tactical Retreats 1 | . . 1 Traps | -11 -10 -10 ------- Run | Scr Mat Min Traps Triggered . | . . . Indirectly . | . . . Trap Hack Attempts . | . . . Triggered . | . . . Disarmed . | . . . Reprogrammed . | . . . Reused . | . . . Traps Extracted . | . . . Installed . | . . . Triggered . | . . . Machines | -11 -10 -10 ---------- Run | Scr Mat Min Machines Disabled . | . . . Max in Single Turn . | . . . Machines Sabotaged . | . . . Garrisons Compromised . | . . . Overloaded Fab Kills . | . . . Fab Network Shutdowns . | . . . Hacking | -11 -10 -10 --------- Run | Scr Mat Min Machines Accessed . | . . . Terminals . | . . . Fabricators . | . . . Repair Stations . | . . . Recycling Units . | . . . Scanalyzers . | . . . Garrison Access . | . . . Total Hacks . | . . . Successful . | . . . Failed . | . . . Catastrophic . | . . . Database Lockouts . | . . . Manual . | . . . Terminals . | . . . Fabricators . | . . . Repair Stations . | . . . Recycling Units . | . . . Scanalyzers . | . . . Garrison Access . | . . . Terminal Hacks . | . . . Fabricator Hacks . | . . . Repair Station Hacks . | . . . Recycling Unit Hacks . | . . . Scanalyzer . | . . . Garrison Access Hacks . | . . . Unauthorized Hacks . | . . . Terminals . | . . . Fabricators . | . . . Repair Stations . | . . . Recycling Units . | . . . Scanalyzers . | . . . Garrison Access . | . . . Data Cores Recovered . | . . . Used . | . . . Hacking Detections . | . . . Full Trace Events . | . . . Feedback Events . | . . . Feedback Blocked . | . . . Robot Schematics Acquired . | . . . Robots Built . | . . . Matter . | . . . Time . | . . . Total Robot Build Rating . | . . . Part Schematics Acquired . | . . . Parts Built . | . . . Matter . | . . . Time . | . . . Total Part Build Rating . | . . . Parts Repaired . | . . . Time . | . . . Parts Recycled . | . . . Recycled Matter . | . . . Retrieved Matter . | . . . Retrieved Components . | . . . Parts Scanalyzed . | . . . Part Schematics Acquired . | . . . Parts Damaged . | . . . Bothacking | -11 -10 -10 ------------ Run | Scr Mat Min Used RIF Installer . | . . . Robots Hacked . | . . . Non-combat . | . . . Combat . | . . . Robot Hacks Applied . | . . . Relay Couplers Released . | . . . Robots Rewired . | . . . Allies Hacked . | . . . Hacks Repelled . | . . . Allies | -11 -10 -10 -------- Run | Scr Mat Min Total Allies 3 | . . 3 Largest Group 3 | . . 3 Highest-Rated Group 40 | . . 40 Highest-Rated Ally 16 | . . 16 Total Orders . | . . . Ally Attacks 6 | . . 6 Total Damage 65 | . . 65 Kills . | . . . Allies Corrupted . | . . . Allies Melted . | . . . Intel | -11 -10 -10 ------- Run | Scr Mat Min Robot Analysis Total . | . . . Derelict Logs Recovered . | . . . Drone Launches . | . . . Drone Recoveries . | . . . Exploration | -11 -10 -10 ------------- Run | Scr Mat Min Turns Passed 613 | 119 61 433 Spaces Moved 380 | 86 49 245 Core 13 | 13 . . Treads . | . . . Legs 358 | 73 49 236 Wheels 9 | . . 9 Hover . | . . . Flight . | . . . Fastest Speed 50 | 50 120 100 Average Speed 120 | 109 120 124 Slowest Speed 150 | 120 120 150 Overloaded Moves . | . . . Propulsion Burnouts . | . . . Robots Hopped . | . . . Cave-ins Triggered . | . . . Exploration Rate (%) 22 | 4 13 50 Regions Visited 2 Branch Regions 1 Pre-discovered Areas . | . . . Known Exits Taken . | . . . Unknown Exits Taken 2 | 1 1 . Scrap Searched 1 | . . 1 Spaces Dug . | . . . Terrain Destroyed . | . . . Melee . | . . . Projectile . | . . . AOE . | . . . Actions | -11 -10 -10 --------- Run | Scr Mat Min Total 475 | 109 52 314 Wait 13 | 1 . 12 Move 378 | 85 48 245 Hop . | . . . Pick Up 25 | 15 2 8 Fast Attach . | . . . Attach 14 | 7 . 7 Detach . | . . . Swap 3 | . . 3 Drop 5 | . 2 3 Fire 37 | 1 . 36 Melee . | . . . Ram . | . . . Kick . | . . . Crush . | . . . Escape Stasis . | . . . Rewire . | . . . Trap . | . . . Miscellaneous . | . . . Route ------- -11/Scrapyard -10/Materials -10/Mines (discovered 1 exit: [*Mat]) History --------- Turn | Location | Event 6 | -11/Scrapyard | Discovered new exit (range 16) 120 | -11/Scrapyard | Entered Materials 157 | -10/Materials | Discovered new exit (range 12) 181 | -10/Materials | Entered Mines 213 | -10/Mines | Discovered new exit (range 9) 254 | -10/Mines | Destroyed 9 combat bots 302 | -10/Mines | Build established: Mutant 440 | -10/Mines | Assisted by bots powering up and referring to "LRC-V3" 533 | -10/Mines | Assembled infested the area 538 | -10/Mines | Assisted by a Guerilla fighting off Assembled 590 | -10/Mines | Core integrity fell below 50% 608 | -10/Mines | Core integrity fell below 20% 614 | -10/Mines | Destroyed by D-53 Grenadier with Mini Grenade Launcher Last Messages --------------- squad. 00536_ K-01 Serf destroyed. 00536_ as-16744 destroyed. 00537_ 1S-26M(h): "I'll hold them off! Go on ahead or try to find another way!" 00537_ HV Slug penetrates as-01894. 00544_ HV Slug penetrates Wall. 00562_ Lgt. Assault Rifle destroyed. 00575_ Aluminum Leg destroyed. 00579_ as-32478 destroyed. 00579_ Switching to secondary target: as-52816. 00582_ Lgt. Assault Rifle destroyed. 00585_ Lgt. Ion Engine destroyed. 00590_ Aluminum Leg destroyed. 00591_ as-52816 destroyed. 00604_ U-05 Engineer builds a Wall. 00607_ U-05 Engineer destroyed. 00609_ EM Pulse Gun destroyed. 00609_ Lgt. Assault Rifle destroyed. 00611_ The unstable cave ceiling collapses. Map ----- +----------------------------------------------------+ | ?# #????# ## #???????????# #?### | | ?# !! #????## # ### ## #???????????# #???? | | ?# ########## #?## ## #???????????# #???? | | ?# ## ##??# #??# # #######??#### #???? | | ?# ! # #??# #?## #??# #???? | | ?# #??# ### ##??# #???? | | ?###### ##??# ### #??# ####???? | | ?????# ##???# """ #??# #??????? | | ?????# ###### """ # #?# #??????? | | ?????## ## """ ##### # ?# #??????? | | ??????## ## ## """ #???# ## #??????? | | ???????# ## ## #???# # #?????## | | ???????# ## #?????### #????## | | ???????## ###### ####%###???????## """ ###### | | ????????########?# #??# #??????????# """ | | ???????????#?# # #??#%#?????????## """ ##### | | ???????????# # #### #????????## #???## | | ???????????? % ## #????????# ##????? | | ???????????# # ## ####???????## ##?????? | | ??????????## # ##???????### ##??????? | | ??????????# # #?????????# ###???????? | | ??????????# #?????????# #?????????? | | ?????????# #??? ##???# ####??????? | | ?????????# # = ## #???# #??????? | | ?????????# #???#### #??????? | | ?????????# # @ #???????#??????? | | ?????????# # # """" #?????????? | | ?????????# # ### """" ? ? ???????????? | | ????????? d ##?? """"????????????????? | | ????????? #???? ??????????????????? | | ?????????? ##????? ????????????????? | | ??????????# # ????????# ???????????????? | | ??????????? ?????????# ??????????????? | | ??????????? ##"?????????? ?????????????? | | ???????????? #?#%??????????? ?????????????? | | ????????????? #??#"???????????? ##????????????? | | ?????????????? ????#?????????????#?????????????? | | ?????????????????????????????????????????????????? | | ?????????????????????????????????????????????????? | | ?????????????????????????????????????????????????? | | ?????????????????????????????????????????????????? | | ?????????????????????????????????????????????????? | | ?????????????????????????????????????????????????? | | ?????????????????????????????????????????????????? | | ?????????????????????????????????????????????????? | | ?????????????????????????????????????????????????? | | ?????????????????????????????????????????????????? | | ?????????????????????????????????????????????????? | | ?????????????????????????????????????????????????? | | ?????????????????????????????????????????????????? | +----------------------------------------------------+ Best States ------------- Heat Dissipation 25 Energy Generation 10 Energy Capacity 125 Matter Stores 300 Matter Capacity 300 Sight Range 16 Terrain Scan Density 10 Evasion (%) 40 Item Schematics ----------------- None Robot Schematics ------------------ None Fabricated ------------ Nothing Alien Tech Used ----------------- None Achievements -------------- None Challenges ------------ None Game ------ Seed SigixAlertTearclaws Manual? 0 Play Time 00:11:04 Cumulative 75.4 hours Start 2020.08.21 @ 02:22:38 End 2020.08.21 @ 02:48:48 Sessions 1 Manual Loads 0 Difficulty Rogue Special Mode None Game No. 60 Rogue 60 Adventurer 0 Explorer 0 Win Type - Total 0 Types 0/0/0/0/0/0/0 Lore% 20 Gallery% 39 Achievement% 28 Wizard Run 0 Options --------- ASCII 0 Keyboard 0 Movement Mouse Keybinds 0 Fullscreen 0 Font 16/SmallcapsGlow Map View 76x50 Tactical HUD 1 Map Filters NONE Filters NONE Steam 1 RUN: 592795ba-0b03-4634-a615-7a9672c18dad